bitfinex-derivatives/quotes_SOLF0:USTF0_20251018
["timestamp","ask_amount","ask_price","bid_price","bid_amount"]
[1760817410549,47.15,186.19,186.17,2.63]
[1760817410951,2.87,186.19,186.17,2.63]
[1760817411248,44.28,186.2,186.17,2.63]
[1760817411449,2.87,186.19,186.17,2.63]
[1760817414951,2.87,186.19,186.17,4.8329]
[1760817415162,44.28,186.2,186.18,2.63]
[1760817415354,47.15,186.2,186.18,2.63]
[1760817419059,47.15,186.2,186.17,4.8329]
[1760817419261,44.28,186.22,186.18,6.63762714]
[1760817419563,44.28,186.22,186.19,2.63]
[1760817419759,44.28,186.22,186.2,2.63]
[1760817420267,44.28,186.22,186.21,2.63]
[1760817420563,44.28,186.23,186.21,2.63]
[1760817421061,47.15,186.23,186.21,2.63]
[1760817423566,47.15,186.23,186.22,5.01674361]
[1760817425257,47.15,186.23,186.21,7.64674361]
[1760817426067,2.87,186.27,186.2,6.63762714]
[1760817426267,2.87,186.26,186.24,7.64384402]
[1760817426964,2.87,186.26,186.25,5.01384402]
[1760817427869,2.87,186.26,186.25,5.00813613]
[1760817428463,44.28,186.27,186.25,7.79813613]
[1760817428770,47.08,186.27,186.25,7.79813613]
[1760817430267,2.8,186.26,186.25,5.00813613]
[1760817430473,2.8,186.26,186.24,5.00813613]
[1760817432571,2.8,186.26,186.24,7.79813613]
[1760817433769,44.28,186.27,186.24,5.00813613]
[1760817434278,2.8,186.26,186.22,5.00813613]
[1760817434470,44.28,186.27,186.22,5.00813613]
[1760817434673,2.8,186.26,186.22,5.00813613]
[1760817434865,3.3377843,186.26,186.22,5.00813613]
[1760817435974,2.8,186.25,186.22,5.00813613]
[1760817436175,3.3377843,186.26,186.22,5.00813613]
[1760817436369,2.87,186.25,186.22,5.00813613]
[1760817436766,3.3377843,186.26,186.22,5.00813613]
[1760817437174,2.87,186.25,186.22,5.00813613]
[1760817437877,3.3377843,186.26,186.22,5.00813613]
[1760817437878,3.3377843,186.26,186.22,7.62813613]
[1760817438278,2.87,186.25,186.22,2.62]
[1760817438472,3.3377843,186.26,186.22,2.62]
[1760817438871,2.87,186.25,186.22,2.62]
[1760817439076,3.3377843,186.26,186.22,2.62]
[1760817439277,2.87,186.25,186.22,7.62813613]
[1760817439581,3.3377843,186.26,186.22,2.62]
[1760817439779,2.87,186.25,186.22,2.62]
[1760817440170,3.3377843,186.26,186.22,2.62]
[1760817440369,3.3377843,186.26,186.22,7.62813613]
[1760817440576,2.87,186.25,186.22,7.62813613]
[1760817440881,3.3377843,186.26,186.22,7.62813613]
[1760817441080,2.87,186.25,186.22,2.62]
[1760817441276,3.3377843,186.26,186.22,7.62813613]
[1760817441482,2.87,186.25,186.22,2.62]
[1760817441682,3.3377843,186.26,186.22,2.62]
[1760817442176,3.3377843,186.26,186.22,7.62813613]
[1760817442383,2.87,186.25,186.22,2.62]
[1760817443082,3.3377843,186.26,186.22,7.62813613]
[1760817443671,2.87,186.25,186.22,5.00813613]
[1760817443877,44.28,186.27,186.21,4.8319]
[1760817443878,47.15,186.27,186.24,2.62]
[1760817444079,47.15,186.27,186.24,7.62813613]
[1760817444380,47.15,186.27,186.25,2.62]
[1760817444583,2.87,186.26,186.24,5.00813613]
[1760817444783,44.28,186.27,186.24,5.00813613]
[1760817444983,2.87,186.26,186.23,7.62813613]
[1760817445383,2.87,186.26,186.23,5.00813613]
[1760817445784,44.28,186.27,186.22,5.00813613]
[1760817445985,44.28,186.27,186.22,7.62813613]
[1760817446181,2.87,186.26,186.22,7.62813613]
[1760817446385,44.28,186.27,186.22,7.62813613]
[1760817446585,2.87,186.26,186.22,7.62813613]
[1760817446788,44.28,186.27,186.22,7.62813613]
[1760817447382,44.28,186.27,186.22,5.00813613]
[1760817447588,2.87,186.26,186.23,2.62]
[1760817447988,44.28,186.27,186.23,2.62]
[1760817448881,2.87,186.26,186.23,2.62]
[1760817449081,44.28,186.27,186.23,2.62]
[1760817450092,2.87,186.26,186.23,2.62]
[1760817450392,44.28,186.27,186.23,2.62]
[1760817450590,49.1106,186.27,186.22,5.00813613]
[1760817450992,49.1106,186.27,186.21,5.00813613]
[1760817451393,2.87,186.26,186.21,5.00813613]
[1760817451590,4.8309,186.25,186.21,5.00813613]
[1760817451790,2.87,186.23,186.21,5.00813613]
[1760817451995,47.13,186.23,186.21,7.62813613]
[1760817453094,44.26,186.23,186.22,7.62813613]
[1760817453297,44.26,186.23,186.22,2.62]
[1760817459497,2.87,186.22,186.21,6.63762714]
[1760817459792,44.26,186.23,186.2,6.63762714]
[1760817459988,44.26,186.23,186.22,5.00303796]
[1760817460395,47.13,186.23,186.22,5.00303796]
[1760817463798,2.87,186.22,186.2,9.25762714]
[1760817465595,44.26,186.23,186.2,11.46972714]
[1760817465795,44.26,186.23,186.21,9.25762714]
[1760817465995,44.26,186.23,186.22,6.63762714]
[1760817466394,44.26,186.23,186.22,9.27762714]
[1760817472007,44.26,186.23,186.22,2.64]
[1760817472598,2.87,186.26,186.24,2.64]
[1760817472804,2.63,186.25,186.24,6.6780222]
[1760817474709,40.25,186.26,186.24,9.3180222]
[1760817474907,2.63,186.25,186.24,6.6780222]
[1760817477407,2.63,186.26,186.24,9.3180222]
[1760817478708,2.63,186.28,186.24,6.6780222]
[1760817478914,2.63,186.28,186.27,5.00650031]
[1760817479909,46.89,186.28,186.27,5.00650031]
[1760817481110,44.26,186.28,186.26,5.00650031]
[1760817481308,2.63,186.27,186.26,5.00650031]
[1760817484106,46.89,186.27,186.26,5.00650031]
[1760817485509,46.87,186.27,186.26,5.00650031]
[1760817486013,2.63,186.27,186.26,5.00650031]
[1760817486214,46.87,186.27,186.26,5.00650031]
[1760817486815,2.63,186.27,186.26,5.00650031]
[1760817489712,46.87,186.27,186.26,5.00650031]
[1760817491719,2.63,186.27,186.26,5.00650031]
[1760817491918,44.35,186.27,186.26,5.00650031]
[1760817492722,2.63,186.27,186.26,5.00650031]
[1760817499028,47.02,186.28,186.26,2.81]
[1760817499324,47.02,186.28,186.25,4.8308]
[1760817499325,47.02,186.28,186.27,5.00591158]
[1760817499519,2.78,186.27,186.26,5.00591158]
[1760817502831,2.78,186.27,186.26,7.81591158]
[1760817503624,47.02,186.27,186.26,7.81591158]
[1760817504025,2.78,186.27,186.26,7.81591158]
[1760817504225,47.02,186.27,186.26,7.81591158]
[1760817504631,2.78,186.27,186.26,7.81591158]
[1760817505028,44.62,186.27,186.26,7.81591158]
[1760817505424,2.78,186.27,186.26,7.81591158]
[1760817505731,47.02,186.27,186.26,7.81591158]
[1760817505930,47.02,186.27,186.26,5.00591158]
[1760817506327,47.02,186.27,186.24,6.6780222]
[1760817506529,47.02,186.27,186.26,5.00808302]
[1760817507125,2.78,186.27,186.26,5.00808302]
[1760817507330,47.02,186.27,186.26,5.00808302]
[1760817508325,2.78,186.27,186.26,5.00808302]
[1760817508527,47.02,186.27,186.26,5.00808302]
[1760817510221,47.02,186.27,186.25,2.81]
[1760817510426,2.78,186.27,186.25,2.81]
[1760817510833,44.62,186.27,186.25,2.81]
[1760817511032,47.02,186.27,186.25,2.81]
[1760817511232,2.78,186.27,186.25,2.81]
[1760817513536,2.78,186.27,186.25,9.4880222]
[1760817517848,47.02,186.27,186.25,9.4880222]
[1760817519148,2.78,186.27,186.25,9.4880222]
[1760817519351,47.02,186.27,186.25,9.4880222]
[1760817520247,2.78,186.29,186.25,6.6780222]
[1760817520554,2.78,186.26,186.25,6.6780222]
[1760817521347,2.78,186.26,186.25,9.4880222]
[1760817522056,47.02,186.27,186.25,9.4880222]
[1760817526351,44.24,186.27,186.26,9.4880222]
[1760817526556,2.78,186.29,186.26,9.4880222]
[1760817526750,46.95,186.28,186.26,9.4880222]
[1760817530356,2.71,186.27,186.26,9.4880222]
[1760817530656,2.71,186.27,186.26,6.6780222]
[1760817531255,44.24,186.28,186.26,9.4680222]
[1760817531456,46.95,186.28,186.26,9.4680222]
[1760817531666,44.24,186.27,186.26,9.4680222]
[1760817531962,2.71,186.27,186.26,9.4680222]
[1760817532454,46.95,186.27,186.26,9.4680222]
[1760817532655,2.71,186.27,186.26,9.4680222]
[1760817533259,2.71,186.27,186.26,2.79]
[1760817535955,46.93,186.27,186.26,2.79]
[1760817537460,46.93,186.27,186.25,14.2988222]
[1760817538066,2.71,186.27,186.25,14.2988222]
[1760817538266,46.93,186.27,186.25,14.2988222]
[1760817539368,44.22,186.27,186.25,14.2988222]
[1760817539562,2.71,186.26,186.25,14.2988222]
[1760817540561,46.93,186.27,186.25,14.2988222]
[1760817545172,2.71,186.3,186.28,2.79]
[1760817545675,2.71,186.34,186.29,2.79]
[1760817545871,44.22,186.33,186.31,5.00865406]
[1760817546073,46.93,186.32,186.31,5.00865406]
[1760817546277,46.93,186.32,186.3,5.00865406]
[1760817546472,2.71,186.31,186.3,5.00865406]
[1760817547073,46.93,186.31,186.3,5.00865406]
[1760817547277,46.93,186.31,186.29,2.79]
[1760817547278,44.22,186.31,186.29,6.67856117]
[1760817547471,4.8285,186.35,186.3,2.64]
[1760817547678,44.22,186.34,186.31,5.00447268]
[1760817547977,2.68,186.33,186.31,5.00447268]
[1760817548171,2.68,186.33,186.31,7.64447268]
[1760817548870,2.68,186.33,186.32,5.00447268]
[1760817549071,44.22,186.33,186.32,7.64447268]
[1760817549265,44.22,186.34,186.32,2.64]
[1760817549471,2.68,186.34,186.33,4.99934552]
[1760817550473,2.68,186.34,186.32,7.63934552]
[1760817551273,68.38020814,186.36,186.33,2.64]
[1760817551577,2.68,186.35,186.33,7.63934552]
[1760817551779,44.22,186.34,186.33,7.63934552]
[1760817552181,2.68,186.37,186.33,7.63934552]
[1760817552374,4.8271,186.4,186.33,4.99934552]
[1760817552571,2.68,186.39,186.33,7.63934552]
[1760817552771,44.22,186.38,186.33,7.63934552]
[1760817552977,2.68,186.37,186.34,2.64]
[1760817553476,46.9,186.37,186.34,2.64]
[1760817554177,2.68,186.37,186.34,2.64]
[1760817554482,46.9,186.37,186.34,7.63934552]
[1760817554675,16.34624093,186.39,186.34,7.63934552]
[1760817554875,2.68,186.36,186.34,7.63934552]
[1760817556176,2.68,186.36,186.35,2.64]
[1760817556777,4.8271,186.4,186.34,7.85934552]
[1760817556976,2.84,186.38,186.33,4.99934552]
[1760817557177,47.06,186.37,186.33,4.99934552]
[1760817557483,44.22,186.37,186.33,4.99934552]
[1760817557672,2.84,186.36,186.33,4.99934552]
[1760817558074,2.84,186.36,186.33,7.85934552]
[1760817558274,2.84,186.36,186.34,2.86]
[1760817566185,21.18141191,186.4,186.33,4.8286]
[1760817566390,44.2,186.39,186.33,7.6886]
[1760817566586,2.84,186.38,186.33,7.6886]
[1760817566883,2.84,186.38,186.33,4.8286]
[1760817567392,44.2,186.39,186.33,7.6886]
[1760817567888,44.2,186.39,186.33,4.8286]
[1760817568194,44.2,186.38,186.34,2.86]
[1760817568589,44.2,186.38,186.35,2.86]
[1760817568795,2.84,186.37,186.35,2.86]
[1760817570696,47.04,186.38,186.35,2.86]
[1760817571697,2.84,186.37,186.35,2.86]
[1760817572693,47.04,186.37,186.35,2.86]
[1760817572894,2.84,186.37,186.35,2.86]
[1760817576693,2.84,186.37,186.34,4.99934552]
[1760817576892,2.84,186.37,186.32,4.99934552]
[1760817576893,2.84,186.36,186.32,4.99934552]
[1760817577093,44.2,186.35,186.32,4.99934552]
[1760817577402,2.84,186.34,186.32,4.99934552]
[1760817579598,2.84,186.34,186.32,7.85934552]
[1760817580007,44.2,186.35,186.32,12.68824552]
[1760817580305,44.2,186.35,186.34,2.86]
[1760817582406,47.04,186.36,186.34,2.86]
[1760817582809,2.84,186.36,186.34,2.86]
[1760817583311,44.2,186.37,186.34,2.86]
[1760817583512,2.84,186.36,186.34,2.86]
[1760817583912,44.2,186.37,186.34,2.86]
[1760817584411,2.84,186.36,186.34,2.86]
[1760817585413,2.84,186.36,186.34,7.85934552]
[1760817587317,2.84,186.36,186.35,4.99934552]
[1760817589419,47.04,186.36,186.35,4.99934552]
[1760817590309,47.04,186.36,186.34,2.86]
[1760817592519,2.84,186.36,186.34,9.53856117]
[1760817592715,47.04,186.36,186.34,9.53856117]
[1760817593322,2.84,186.36,186.34,9.53856117]
[1760817593713,47.04,186.36,186.34,9.53856117]
[1760817595817,47.03,186.36,186.34,9.53856117]
[1760817596519,44.2,186.36,186.34,9.53856117]
[1760817596720,47.03,186.36,186.34,9.53856117]
[1760817596919,44.2,186.36,186.34,9.53856117]
[1760817597120,2.83,186.35,186.34,9.53856117]
[1760817600320,2.83,186.35,186.34,6.67856117]
[1760817602217,2.83,186.37,186.33,6.67856117]
[1760817602418,2.83,186.36,186.35,5.00419459]
[1760817602619,2.83,186.36,186.32,6.67856117]
[1760817602620,2.83,186.36,186.34,5.00419459]
[1760817602917,47.01,186.35,186.34,5.00419459]
[1760817603523,2.83,186.35,186.34,5.00419459]
[1760817604021,47.01,186.35,186.34,5.00419459]
[1760817604217,2.83,186.36,186.32,6.67856117]
[1760817604420,2.83,186.36,186.35,5.00284307]
[1760817605518,47.01,186.36,186.35,5.00284307]
[1760817605917,2.83,186.35,186.33,5.00284307]
[1760817606524,44.18,186.36,186.33,5.00284307]
[1760817606823,2.8,186.34,186.33,5.00284307]
[1760817607324,2.8,186.34,186.3,11.50806117]
[1760817607325,44.18,186.34,186.32,5.00284307]
[1760817607523,2.8,186.33,186.32,5.00284307]
[1760817608222,2.8,186.33,186.3,5.00284307]
[1760817608425,47.5177843,186.34,186.29,5.00284307]
[1760817608426,2.8,186.3,186.29,5.00284307]
[1760817608619,46.98,186.3,186.29,5.00284307]
[1760817609024,2.8,186.29,186.28,5.00284307]
[1760817609219,44.18,186.3,186.27,5.00284307]
[1760817609523,2.8,186.27,186.25,5.00284307]
[1760817609724,46.98,186.26,186.25,5.00284307]
[1760817610121,46.98,186.26,186.24,5.00284307]
[1760817610428,2.8,186.25,186.24,5.00284307]
[1760817610724,46.98,186.26,186.24,7.71284307]
[1760817611115,46.98,186.26,186.24,2.71]
[1760817611320,44.18,186.26,186.25,2.71]
[1760817613324,44.2,186.28,186.25,2.71]
[1760817613516,44.2,186.28,186.26,7.70427862]
[1760817613720,44.2,186.29,186.27,2.71]
[1760817614124,2.8,186.29,186.27,2.71]
[1760817614330,2.8,186.29,186.26,2.71]
[1760817614525,4.8289,186.33,186.25,4.99427862]
[1760817614730,4.8289,186.33,186.29,7.70427862]
[1760817614731,2.8,186.33,186.29,7.70427862]
[1760817614928,2.8,186.33,186.27,4.99427862]
[1760817614929,6.1377843,186.33,186.27,4.99427862]
[1760817615129,3.3377843,186.33,186.27,4.99427862]
[1760817615329,2.8,186.32,186.27,4.99427862]
[1760817615526,3.3377843,186.33,186.27,7.70427862]
[1760817616028,2.8,186.32,186.27,7.70427862]
[1760817616231,3.3377843,186.33,186.27,2.71]
[1760817616428,2.78,186.32,186.26,4.99427862]
[1760817617234,3.3377843,186.3,186.25,4.99427862]
[1760817617432,2.78,186.29,186.25,7.60427862]
[1760817617630,2.78,186.28,186.25,7.60427862]
[1760817618025,2.78,186.28,186.26,2.61]
[1760817622433,44.2,186.29,186.25,4.8307]
[1760817622639,46.98,186.29,186.25,9.82497862]
[1760817623137,46.98,186.29,186.27,2.61]
[1760817624037,2.78,186.28,186.25,12.43497862]
[1760817624237,2.78,186.28,186.25,7.4407]
[1760817626735,2.78,186.28,186.25,2.61]
[1760817626938,44.2,186.29,186.25,2.61]
[1760817627142,2.78,186.28,186.25,2.61]
[1760817627642,2.78,186.28,186.24,4.831]
[1760817628230,2.78,186.28,186.25,2.61]
[1760817628530,2.78,186.28,186.24,4.831]
[1760817628835,2.78,186.28,186.25,2.61]
[1760817629439,2.78,186.28,186.24,4.831]
[1760817629744,2.78,186.28,186.25,2.61]
[1760817631233,2.78,186.28,186.24,4.831]
[1760817632545,2.78,186.28,186.25,2.61]
[1760817633339,44.2,186.29,186.25,2.61]
[1760817633540,3.3377843,186.27,186.21,7.60427862]
[1760817633740,2.78,186.26,186.19,4.99427862]
[1760817634042,44.2,186.25,186.19,4.99427862]
[1760817634246,46.98,186.25,186.2,2.61]
[1760817634439,44.2,186.25,186.19,4.99427862]
[1760817634634,46.98,186.25,186.19,7.60427862]
[1760817634841,2.78,186.24,186.19,7.60427862]
[1760817635143,2.78,186.23,186.2,7.4421]
[1760817635343,2.78,186.23,186.21,2.61]
[1760817635539,3.3377843,186.24,186.22,2.61]
[1760817635744,3.3377843,186.24,186.21,4.8318]
[1760817636145,44.2,186.25,186.19,4.99427862]
[1760817636343,28.72,186.26,186.21,2.61]
[1760817636544,44.22,186.27,186.21,2.61]
[1760817637041,44.22,186.27,186.2,4.99427862]
[1760817637042,47.0,186.27,186.24,2.61]
[1760817637435,47.0,186.27,186.23,4.8311]
[1760817637436,44.22,186.27,186.23,4.8311]
[1760817637640,2.78,186.26,186.21,12.43607862]
[1760817637943,44.22,186.25,186.21,4.8318]
[1760817638249,47.0,186.24,186.21,4.8318]
[1760817638443,47.0,186.24,186.21,7.4418]
[1760817638643,2.78,186.24,186.21,7.4418]
[1760817638837,3.3377843,186.28,186.21,7.4418]
[1760817639042,2.78,186.23,186.21,7.4418]
[1760817639347,47.0,186.24,186.21,7.4418]
[1760817639551,2.78,186.24,186.21,7.4418]
[1760817640748,2.78,186.24,186.22,7.4415]
[1760817640947,28.72,186.25,186.23,2.61]
[1760817641953,28.72,186.25,186.24,2.61]
[1760817647861,2.67,186.3,186.22,6.67856117]
[1760817648068,2.67,186.31,186.25,7.58447618]
[1760817648256,2.67,186.31,186.26,4.99447618]
[1760817648463,2.67,186.31,186.28,2.59]
[1760817648962,3.3377843,186.32,186.29,2.59]
[1760817649261,2.67,186.34,186.3,2.59]
[1760817649967,2.67,186.34,186.31,4.8293]
[1760817650165,2.67,186.34,186.31,7.4193]
[1760817651664,2.67,186.34,186.32,4.8289]
[1760817651967,44.22,186.37,186.32,2.59]
[1760817651968,2.67,186.37,186.32,2.59]
[1760817652267,110.6608738,186.38,186.32,4.99447618]
[1760817652570,69.1108738,186.38,186.32,7.58447618]
[1760817653067,3.3377843,186.38,186.33,7.4186]
[1760817653266,3.3377843,186.38,186.33,12.41307618]
[1760817653572,2.67,186.37,186.33,12.41307618]
[1760817653966,2.67,186.37,186.34,4.99447618]
[1760817654366,2.67,186.37,186.34,7.58447618]
[1760817654763,2.67,186.37,186.35,2.59]
[1760817655570,2.67,186.39,186.33,7.58447618]
[1760817656068,2.67,186.39,186.35,4.8281]
[1760817656461,3.3377843,186.4,186.35,4.8281]
[1760817656674,2.67,186.39,186.35,4.8281]
[1760817657075,3.3377843,186.4,186.35,4.8281]
[1760817657669,47.5377843,186.4,186.35,4.8281]
[1760817657868,47.5377843,186.4,186.33,7.4188]
[1760817658073,3.3377843,186.4,186.33,7.4188]
[1760817658572,2.67,186.38,186.33,7.4188]
[1760817658872,44.2,186.39,186.33,7.4188]
[1760817659069,2.67,186.38,186.33,7.4188]
[1760817659276,44.2,186.39,186.33,7.4188]
[1760817659277,44.2,186.39,186.33,4.8288]
[1760817659573,2.67,186.36,186.33,4.8288]
[1760817659965,2.67,186.38,186.35,2.59]
[1760817660571,2.67,186.38,186.34,7.4184]
[1760817660768,47.5377843,186.39,186.34,7.4184]
[1760817661075,2.67,186.38,186.34,7.4184]
[1760817661671,3.3377843,186.39,186.34,7.4184]
[1760817661871,47.5577843,186.39,186.34,7.4184]
[1760817662568,2.67,186.38,186.34,7.4184]
[1760817663174,47.5377843,186.39,186.34,7.4184]
[1760817663476,2.67,186.38,186.34,7.4184]
[1760817664272,2.67,186.38,186.34,4.8284]
[1760817664472,47.5377843,186.39,186.34,4.8284]
[1760817664881,2.67,186.38,186.32,9.82347618]
[1760817665279,2.67,186.38,186.32,12.41347618]
[1760817665580,2.67,186.36,186.33,4.8287]
[1760817665780,2.67,186.36,186.33,7.4187]
[1760817665970,2.67,186.36,186.34,2.59]
[1760817666683,2.67,186.36,186.33,7.4187]
[1760817667790,2.67,186.36,186.34,2.74]
[1760817670881,3.3377843,186.37,186.33,4.8287]
[1760817671081,2.82,186.36,186.33,7.5687]
[1760817671283,47.02,186.36,186.33,7.5687]
[1760817671683,2.82,186.36,186.33,7.5687]
[1760817671883,47.02,186.36,186.33,2.74]
[1760817673578,47.02,186.36,186.34,2.74]
[1760817673986,47.02,186.36,186.33,4.8287]
[1760817674285,2.82,186.35,186.33,7.5687]
[1760817676889,44.2,186.36,186.33,4.8287]
[1760817677094,2.72,186.36,186.33,4.8287]
[1760817677293,2.72,186.34,186.33,4.8287]
[1760817677590,44.2,186.35,186.31,12.68367618]
[1760817677799,6.0577843,186.34,186.28,7.85447618]
[1760817677985,2.72,186.33,186.28,2.86]
[1760817678289,14.88,186.33,186.28,2.86]
[1760817678491,26.44,186.32,186.28,2.86]
[1760817678794,2.72,186.31,186.28,2.86]
[1760817678995,2.72,186.31,186.28,7.69]
[1760817679195,2.72,186.31,186.26,4.99447618]
[1760817679597,2.72,186.31,186.28,7.69]
[1760817680091,2.72,186.31,186.29,2.86]
[1760817680488,2.72,186.31,186.28,4.83]
[1760817680691,8.1664843,186.34,186.28,4.83]
[1760817680890,2.72,186.32,186.26,4.8305]
[1760817681292,27.7,186.32,186.26,9.82497618]
[1760817681595,2.72,186.31,186.28,2.86]
[1760817682993,8.1664843,186.34,186.29,2.86]
[1760817683199,46.92,186.33,186.29,2.86]
[1760817683495,46.92,186.33,186.28,4.83]
[1760817683695,2.72,186.33,186.29,2.86]
[1760817683998,2.72,186.32,186.29,2.86]
[1760817685295,44.2,186.33,186.29,2.86]
[1760817685500,44.2,186.33,186.28,7.69]
[1760817685686,3.3377843,186.34,186.28,7.69]
[1760817685891,44.2,186.33,186.28,7.69]
[1760817686192,2.72,186.32,186.28,7.69]
[1760817686498,44.2,186.32,186.28,7.69]
[1760817686799,2.72,186.31,186.28,7.69]
[1760817687002,2.72,186.32,186.29,2.86]
[1760817687293,33.56,186.33,186.29,2.86]
[1760817687496,2.72,186.32,186.29,2.86]
[1760817688094,3.3377843,186.34,186.29,2.86]
[1760817688300,2.72,186.32,186.29,2.86]
[1760817688501,44.2,186.33,186.29,2.86]
[1760817688999,2.72,186.32,186.29,2.86]
[1760817689198,2.72,186.33,186.29,2.86]
[1760817689400,2.72,186.32,186.29,2.86]
[1760817691393,2.72,186.32,186.28,9.82447618]
[1760817691695,44.2,186.33,186.28,12.68447618]
[1760817691901,8.1664843,186.34,186.28,12.68447618]
[1760817692101,2.72,186.31,186.28,12.68447618]
[1760817692693,44.2,186.32,186.28,12.68447618]
[1760817692694,44.2,186.32,186.28,4.99447618]
[1760817693002,2.72,186.31,186.28,4.99447618]
[1760817694200,44.2,186.32,186.28,4.99447618]
[1760817694397,8.1664843,186.34,186.28,4.99447618]
[1760817694601,2.72,186.33,186.28,4.99447618]
[1760817694801,41.6,186.32,186.28,4.99447618]
[1760817694996,2.72,186.31,186.28,4.99447618]
[1760817695196,44.2,186.31,186.27,4.99447618]
[1760817695393,2.72,186.3,186.27,4.99447618]
[1760817695592,32.76,186.31,186.27,7.85447618]
[1760817695796,2.72,186.3,186.27,7.85447618]
[1760817696405,2.72,186.3,186.27,4.99447618]
[1760817696706,33.94,186.31,186.29,2.86]
[1760817697004,4.829,186.33,186.29,2.86]
[1760817697205,2.72,186.32,186.29,2.86]
[1760817698001,2.72,186.32,186.28,9.82447618]
[1760817698202,2.72,186.32,186.29,2.86]
[1760817699206,2.72,186.32,186.28,9.82447618]
[1760817699506,2.72,186.33,186.29,2.86]
[1760817699701,44.2,186.33,186.29,2.86]
[1760817699904,2.72,186.33,186.29,2.86]
[1760817700408,42.0,186.33,186.29,2.86]
[1760817700609,2.72,186.32,186.29,2.86]
[1760817700810,3.3377843,186.34,186.29,2.86]
[1760817701307,44.2,186.33,186.29,2.86]
[1760817701505,3.3377843,186.34,186.29,2.86]
[1760817701706,2.72,186.33,186.29,2.86]
[1760817701906,2.72,186.32,186.29,2.86]
[1760817702297,4.8285,186.35,186.3,2.86]
[1760817702498,2.72,186.33,186.3,2.86]
[1760817703010,2.72,186.33,186.29,9.82427618]
[1760817703212,2.72,186.34,186.31,2.86]
[1760817704602,44.2,186.35,186.3,4.8295]
[1760817704814,44.2,186.36,186.32,2.86]
[1760817705005,44.2,186.36,186.31,4.99447618]
[1760817705205,44.2,186.36,186.32,2.86]
[1760817705406,46.92,186.37,186.31,4.99447618]
[1760817705601,2.72,186.37,186.32,2.86]
[1760817705806,6.0577843,186.38,186.32,7.85447618]
[1760817706007,2.72,186.36,186.33,2.86]
[1760817706709,2.79,186.37,186.33,2.86]
[1760817707013,49.0279,186.37,186.33,2.86]
[1760817707209,2.79,186.36,186.33,2.86]
[1760817707508,2.79,186.36,186.31,9.82367618]
[1760817707714,46.99,186.35,186.31,12.68367618]
[1760817707905,2.79,186.35,186.32,2.86]
[1760817710314,46.99,186.35,186.32,2.86]
[1760817712513,2.79,186.34,186.32,2.86]
[1760817714205,2.79,186.34,186.32,7.85447618]
[1760817716010,44.2,186.35,186.32,4.99447618]
[1760817716219,2.79,186.34,186.32,4.99447618]
[1760817716717,2.79,186.34,186.32,7.85447618]
[1760817718111,46.99,186.34,186.32,7.85447618]
[1760817718507,2.79,186.36,186.32,4.99447618]
[1760817718709,44.2,186.35,186.32,4.99447618]
[1760817719111,2.79,186.34,186.32,4.99447618]